Cogmind - Beta 10.2 @@@ ROGUE MODE // 2021.03.07 @ 04:21:54 Player: BOTHUNTER Result: Destroyed by S-27 Virus with Autogun Performance ------------- Evolutions (3) 1500 Regions Visited (9) 1800 Robots Destroyed (24) 120 Value Destroyed (617) 617 Prototype IDs (3) 60 Alien Tech Used (0) 0 Bonus (1041) 1041 TOTAL SCORE: 5138 Bonus ------- Follower Combat Kills 41 Entered Garrisons 200 Used RIF Installer 500 Aligned with FarCom 300 Cogmind --------- Core Integrity 0/700 Matter 86/300 Energy 99/100 System Corruption 0% Temperature Cool (0) Movement Core (50) Location -7/Garrison Parts ------- > --- POWER (1) -------- (None) > --- PROPULSION (2) --- (None) > --- UTILITY (8) ------ Enhanced Optical Array Advanced Targeting Computer Hacking Suite Hacking Suite > --- WEAPON (2) ------- (None) > --- INVENTORY (4) ---- Advanced Weight Redist. System Chainsword Peak State ------------ > --- POWER ------------ Light Ion Engine > --- PROPULSION ------- Improved Flight Unit Xenon Bombardment Thruster > --- UTILITY ---------- Superbattery Enhanced Optical Array Advanced Targeting Computer Maneuvering Thrusters Hacking Suite Hacking Suite Hacking Suite System Shield > --- WEAPON ----------- Chainsword Chainsword > --- INVENTORY -------- Microactuators Axe Chainsword [Rating: 49] Favorites ----------- Power Light Ion Engine Engine Light Ion Engine Propulsion Flight Unit Flight Unit Flight Unit Utility Targeting Computer Device Maneuvering Thrusters Storage Superbattery Processor Targeting Computer Hackware Hacking Suite Protection Light Armor Plating Weapon Chainsword Energy Gun EM Pulse Gun Ballistic Gun Light Assault Rifle Ballistic Cannon Battle Cannon Slashing Weapon Chainsword Build | -11 -10 -10 -9 -9 -9 -8 -8 -7 -7 ------- Run | Scr Mat Min Mat Min Exi Min Mat Fac Gar Slots Evolved 6 | . . . 2 . . . 2 2 . Power . | . . . . . . . . . . Propulsion . | . . . . . . . . . . Utility 6 | . . . 2 . . . 2 2 . Weapon . | . . . . . . . . . . Parts Attached 47 | 2 4 12 4 1 5 . 5 12 2 Power 5 | . . 2 1 . 1 . . 1 . Engine 5 | . . 2 1 . 1 . . 1 . Core . | . . . . . . . . . . Reactor . | . . . . . . . . . . Propulsion 6 | . . 2 1 . . . 1 1 1 Treads . | . . . . . . . . . . Leg . | . . . . . . . . . . Wheel . | . . . . . . . . . . Hover . | . . . . . . . . . . Flight 6 | . . 2 1 . . . 1 1 1 Utility 19 | . 4 3 2 . 1 . 3 5 1 Device 4 | . . . . . . . 2 1 1 Storage 1 | . . . . . 1 . . . . Processor 9 | . 4 3 . . . . 1 1 . Hackware 4 | . . . 1 . . . . 3 . Protection 1 | . . . 1 . . . . . . Artifact . | . . . . . . . . . . Weapon 17 | 2 . 5 . 1 3 . 1 5 . Energy Gun 4 | 2 . 1 . . 1 . . . . Energy Cannon . | . . . . . . . . . . Ballistic Gun 7 | . . 4 . . 2 . . 1 . Ballistic Cannon 1 | . . . . 1 . . . . . Launcher . | . . . . . . . . . . Special Weapon . | . . . . . . . . . . Impact Weapon . | . . . . . . . . . . Slashing Weapon 5 | . . . . . . . 1 4 . Piercing Weapon . | . . . . . . . . . . Special Melee Weapon . | . . . . . . . . . . Unidentified Prototypes 3 | . . . . . 2 . 1 . . Parts Lost 14 | . 1 . . . . . 2 1 10 Power 1 | . . . . . . . . . 1 Propulsion 4 | . . . . . . . 1 . 3 Utility 6 | . . . . . . . 1 1 4 Weapon 3 | . 1 . . . . . . . 2 Highest Loss Streak 10 | . 1 . . . . . 1 1 10 Average Slot Usage (%) 75 | . 40 38 79 93 74 77 72 89 86 Engine 2 | . . . 11 11 . . . 2 6 Flight 17 | . . . 22 22 22 22 18 15 13 Device 3 | . . . . . . . 8 9 6 Storage 5 | . . . . . 9 11 9 4 . Processor 20 | . 11 21 22 22 22 22 18 20 15 Hackware 11 | . . . . 11 11 11 9 22 28 Ballistic Gun 6 | . . 14 22 9 8 11 . . . Slashing Weapon 4 | . . . . . . . 8 11 14 Naked Turns . | . . . . . . . . . . Heaviest Build 12 | 3 3 5 8 9 7 7 8 12 11 Greatest Support 15 | 3 3 8 8 8 8 8 10 13 15 Greatest Overweight (x) 3 | . . 1 . 1 . . 1 1 3 Average Overweight (x) . | . . . . . . . . . . Largest Inventory Capacity 4 | 4 4 4 4 4 4 4 4 4 4 Average Capacity 4 | 4 4 4 4 4 4 4 4 4 4 Most Carried 4 | 2 2 4 4 4 4 4 4 4 4 Average Carried 3 | 1 2 3 3 4 3 3 3 3 3 Final Capacity 4 | 4 4 4 4 4 4 4 4 4 4 Final Carried 4 | 2 2 4 4 4 4 4 4 4 2 Class Distribution -------------------- 60% | Mutant 22% | Hacker-Mutant 17% | Scavenger-Mutant Dominant Class ---------------- Mutant | -10/Materials Mutant | -10/Mines Scavenger-Mutant | -9/Materials Scavenger-Mutant | -9/Mines Mutant | -9/Exiles Mutant | -8/Mines Mutant | -8/Materials Hacker-Mutant | -7/Factory Hacker-Mutant | -7/Garrison Resources | -11 -10 -10 -9 -9 -9 -8 -8 -7 -7 ----------- Run | Scr Mat Min Mat Min Exi Min Mat Fac Gar Matter Collected 510 | 68 . 148 155 . . 38 37 14 50 Remotely . | . . . . . . . . . . Salvage Created 483 | . . 136 218 . . . 51 78 . Parts 42 | . . 6 25 . . . 3 8 . Haulers Intercepted . | . . . . . . . . . . Recyclers Shooed . | . . . . . . . . . . Parts Field Recycled . | . . . . . . . . . . Retrieved Matter . | . . . . . . . . . . Parts Self-Destructed . | . . . . . . . . . . Prevented . | . . . . . . . . . . Kills | -11 -10 -10 -9 -9 -9 -8 -8 -7 -7 ------- Run | Scr Mat Min Mat Min Exi Min Mat Fac Gar Combat Hostiles Destroyed 13 | . . 4 9 . . . . . . Guns 7 | . . 3 4 . . . . . . AOE 6 | . . 1 5 . . . . . . Classes Destroyed 8 | . . 2 5 . . . 1 . . Worker 3 | . . . 2 . . . . 1 . Builder 1 | . . . 1 . . . . . . Operator 4 | . . . 2 . . . 1 1 . Watcher 3 | . . . . . . . 1 2 . Swarmer 9 | . . 2 7 . . . . . . Grunt 1 | . . . 1 . . . . . . Brawler 1 | . . . 1 . . . . . . Sentry 2 | . . 2 . . . . . . . Best Kill Streak 10 | . . 2 10 . . . 1 1 . Combat Bots Only 8 | . . 2 8 . . . . . . Max Kills in Single Turn 7 | . . 1 7 . . . 1 1 . Gunslinging . | . . . . . . . . . . Exploded 5 | . . 1 5 . . . . . . Melee . | . . . . . . . . . . Uniques/NPCs Destroyed . | . . . . . . . . . . Combat | -11 -10 -10 -9 -9 -9 -8 -8 -7 -7 -------- Run | Scr Mat Min Mat Min Exi Min Mat Fac Gar Damage Taken 1580 | . 87 142 152 . . . 87 54 1058 Core 801 | . 28 23 30 . . . 18 18 684 Absorbed by Shields 130 | . . . . . . . . . 130 Core Remaining (%) 91 | 100 . 79 . . . 92 96 . . Volleys Fired 63 | . 3 23 34 . . 3 . . . Largest 2 | . 2 2 2 . . 1 . . . Hottest 80 | . 80 65 40 . . 25 . . . Shots Fired 103 | . 6 26 68 . . 3 . . . Gun 103 | . 6 26 68 . . 3 . . . Cannon . | . . . . . . . . . . Launcher . | . . . . . . . . . . Special . | . . . . . . . . . . Kinetic 94 | . . 23 68 . . 3 . . . Thermal 3 | . 3 . . . . . . . . Explosive . | . . . . . . . . . . Electromagnetic 6 | . 3 3 . . . . . . . Robot Hit Streak 18 | . 2 10 18 . . 3 . . . Robot Miss Streak 4 | . 2 1 4 . . . . . . Penetration Max . | . . . . . . . . . . Secondary Targets 1 | . . . 1 . . . . . . Max Gunslinging Chain 1 | . . . 1 . . . . . . Shots Hit Robots 83 | . 3 22 39 . . 3 6 9 1 Core Hits 36 | . 1 8 22 . . . 1 4 . Critical Hits 1 | . . . . . . . . 1 . Critical Kills 1 | . . . . . . . . 1 . Critical Parts Destroyed . | . . . . . . . . . . Melee Attacks 92 | . . . . . . . 48 21 23 Impact . | . . . . . . . . . . Slashing 92 | . . . . . . . 48 21 23 Piercing . | . . . . . . . . . . Sneak Attacks 4 | . . . . . . . 1 3 . Combat Hostiles . | . . . . . . . . . . Follow-up Attacks 1 | . . . . . . . . 1 . Damage Inflicted 2285 | . 10 318 862 . . 43 399 616 37 Guns 588 | . 10 240 295 . . 43 . . . Cannons . | . . . . . . . . . . Explosions 645 | . . 78 567 . . . . . . Melee 1052 | . . . . . . . 399 616 37 Ramming . | . . . . . . . . . . Kinetic 568 | . . 230 295 . . 43 . . . Thermal 88 | . 10 78 . . . . . . . Explosive 567 | . . . 567 . . . . . . Electromagnetic 10 | . . 10 . . . . . . . Impact . | . . . . . . . . . . Slashing 1052 | . . . . . . . 399 616 37 Piercing . | . . . . . . . . . . Highest Corruption . | . . . . . . . . . . Average Corruption . | . . . . . . . . . . Corruption Purged . | . . . . . . . . . . Overload Shots . | . . . . . . . . . . Overflow Damage 327 | . . . 2 . . . 152 173 . Projectiles . | . . . . . . . . . . Explosions 2 | . . . 2 . . . . . . Melee 325 | . . . . . . . 152 173 . Knockbacks . | . . . . . . . . . . Impact . | . . . . . . . . . . Kinetic . | . . . . . . . . . . Secondary . | . . . . . . . . . . Self-Inflicted Damage . | . . . . . . . . . . Shots . | . . . . . . . . . . Rammed . | . . . . . . . . . . Targets Rammed . | . . . . . . . . . . Kicked . | . . . . . . . . . . Crushed . | . . . . . . . . . . Highest Temperature 61 | . 9 61 8 . . 3 . . . Average Temperature 10 | . 5 35 3 . . 3 . . . Received Heat Transfer 165 | . 51 27 33 . . . 36 18 . Siege Activations . | . . . . . . . . . . Robots Corrupted . | . . . . . . . . . . Combat Hostiles . | . . . . . . . . . . Parts Fried . | . . . . . . . . . . Impact Corruptions . | . . . . . . . . . . Robots Melted . | . . . . . . . . . . Combat Hostiles . | . . . . . . . . . . Parts Melted . | . . . . . . . . . . Heat Transferred 125 | . 25 100 . . . . . . . Parts Sabotaged . | . . . . . . . . . . Parts Stolen . | . . . . . . . . . . Parts Stripped . | . . . . . . . . . . Power Chain Reactions 1 | . . 1 . . . . . . . Missiles Intercepted . | . . . . . . . . . . Alert | -11 -10 -10 -9 -9 -9 -8 -8 -7 -7 ------- Run | Scr Mat Min Mat Min Exi Min Mat Fac Gar Peak Influence 435 | . 45 148 435 181 . 31 284 250 94 Initial 128 | . . 13 57 91 . . 11 128 39 Average 129 | . 26 74 177 145 . 11 153 179 68 Maximum Alert Level 2 | . . . 2 . . . 1 1 . Low Security (%) 76 | 100 100 100 72 100 . 100 57 61 100 Level 1 21 | . . . 18 . . . 42 38 . Level 2 1 | . . . 9 . . . . . . Level 3 . | . . . . . . . . . . Level 4 . | . . . . . . . . . . Level 5 . | . . . . . . . . . . High Security . | . . . . . . . . . . Max Security . | . . . . . . . . . . Squads Dispatched 11 | . 2 . 4 . . . 3 2 . Investigation 6 | . . . 3 . . . 1 2 . Extermination . | . . . . . . . . . . Reinforcement 5 | . 2 . 1 . . . 2 . . Assault . | . . . . . . . . . . Garrison . | . . . . . . . . . . Intercept . | . . . . . . . . . . Construction Impeded . | . . . . . . . . . . Haulers Reinforced . | . . . . . . . . . . Stealth | -11 -10 -10 -9 -9 -9 -8 -8 -7 -7 --------- Run | Scr Mat Min Mat Min Exi Min Mat Fac Gar Distress Signals 4 | . 1 . 1 . . . 2 . . Communications Jammed . | . . . . . . . . . . Distress Signals . | . . . . . . . . . . Times Spotted 80 | . 8 5 27 . . 1 22 4 13 Peak Tracking Total 11 | . 8 3 11 . . 1 7 2 11 Tactical Retreats 14 | . . 1 1 . . . 10 . 2 Traps | -11 -10 -10 -9 -9 -9 -8 -8 -7 -7 ------- Run | Scr Mat Min Mat Min Exi Min Mat Fac Gar Traps Triggered 9 | . . 1 1 . . . . . 7 Indirectly . | . . . . . . . . . . Trap Hack Attempts . | . . . . . . . . . . Triggered . | . . . . . . . . . . Disarmed . | . . . . . . . . . . Reprogrammed . | . . . . . . . . . . Reused . | . . . . . . . . . . Traps Extracted . | . . . . . . . . . . Installed . | . . . . . . . . . . Triggered . | . . . . . . . . . . Machines | -11 -10 -10 -9 -9 -9 -8 -8 -7 -7 ---------- Run | Scr Mat Min Mat Min Exi Min Mat Fac Gar Machines Disabled 3 | . 1 . 1 . . . . . 1 Max in Single Turn 1 | . 1 . 1 . . . . . 1 Garrison Relay 2 | . . . . . . . . . 2 Machines Sabotaged . | . . . . . . . . . . Garrisons Compromised . | . . . . . . . . . . Overloaded Fab Kills . | . . . . . . . . . . Fab Network Shutdowns . | . . . . . . . . . . Hacking | -11 -10 -10 -9 -9 -9 -8 -8 -7 -7 --------- Run | Scr Mat Min Mat Min Exi Min Mat Fac Gar Machines Accessed 16 | . . 1 4 1 . . 6 4 . Terminals 12 | . . . 4 . . . 6 2 . Fabricators . | . . . . . . . . . . Repair Stations . | . . . . . . . . . . Recycling Units . | . . . . . . . . . . Scanalyzers 1 | . . . . . . . . 1 . Garrison Access 1 | . . . . . . . . 1 . Total Hacks 54 | . . 1 16 1 . . 26 10 . Successful 36 | . . 1 9 1 . . 19 6 . Failed 17 | . . . 7 . . . 6 4 . Catastrophic 2 | . . . 2 . . . . . . Database Lockouts 1 | . . . . . . . 1 . . Manual 41 | . . . 13 . 1 . 23 4 . Terminals 47 | . . . 16 . . . 26 5 . Fabricators . | . . . . . . . . . . Repair Stations . | . . . . . . . . . . Recycling Units . | . . . . . . . . . . Scanalyzers 3 | . . . . . . . . 3 . Garrison Access 2 | . . . . . . . . 2 . Terminal Hacks 16 | . . 1 4 1 . . 9 1 . Robot Analysis 4 | . . . 2 . . . 1 1 . Open Door 2 | . . 1 . 1 . . . . . Level Access Points 1 | . . . . . . . 1 . . Branch Access Points 1 | . . . 1 . . . . . . Terminal Index 1 | . . . . . . . 1 . . Scanalyzer Index 1 | . . . . . . . 1 . . Locate Traps 2 | . . . . . . . 2 . . Dispatch Records 1 | . . . . . . . 1 . . Garrison Status 1 | . . . . . . . 1 . . Recall Investigation 1 | . . . 1 . . . . . . Recall Reinforcements 1 | . . . . . . . 1 . . Fabricator Hacks . | . . . . . . . . . . Repair Station Hacks . | . . . . . . . . . . Recycling Unit Hacks . | . . . . . . . . . . Scanalyzer 1 | . . . . . . . . 1 . Insert Component 1 | . . . . . . . . 1 . Garrison Access Hacks 1 | . . . . . . . . 1 . Unlock Access 1 | . . . . . . . . 1 . Unauthorized Hacks 17 | . . . 5 . . . 9 3 . Terminals 16 | . . . 5 . . . 9 2 . Track 3 | . . . 1 . . . 2 . . Assimilate 1 | . . . 1 . . . . . . Botnet 10 | . . . 3 . . . 5 2 . Disrupt 1 | . . . . . . . 1 . . Operators 1 | . . . . . . . 1 . . Fabricators . | . . . . . . . . . . Repair Stations . | . . . . . . . . . . Recycling Units . | . . . . . . . . . . Scanalyzers . | . . . . . . . . . . Garrison Access 1 | . . . . . . . . 1 . Decoy 1 | . . . . . . . . 1 . Data Cores Recovered 1 | . . . . . . . . 1 . Used . | . . . . . . . . . . Hacking Detections 14 | . . . 4 . . . 6 4 . Full Trace Events 7 | . . . 3 . . . 2 2 . Feedback Events . | . . . . . . . . . . Feedback Blocked . | . . . . . . . . . . Robot Schematics Acquired . | . . . . . . . . . . Robots Built . | . . . . . . . . . . Matter . | . . . . . . . . . . Time . | . . . . . . . . . . Total Robot Build Rating . | . . . . . . . . . . Part Schematics Acquired . | . . . . . . . . . . Parts Built . | . . . . . . . . . . Matter . | . . . . . . . . . . Time . | . . . . . . . . . . Total Part Build Rating . | . . . . . . . . . . Parts Repaired . | . . . . . . . . . . Time . | . . . . . . . . . . Parts Recycled . | . . . . . . . . . . Recycled Matter . | . . . . . . . . . . Retrieved Matter . | . . . . . . . . . . Retrieved Components . | . . . . . . . . . . Parts Scanalyzed 1 | . . . . . . . . 1 . Part Schematics Acquired . | . . . . . . . . . . Parts Damaged . | . . . . . . . . . . Bothacking | -11 -10 -10 -9 -9 -9 -8 -8 -7 -7 ------------ Run | Scr Mat Min Mat Min Exi Min Mat Fac Gar Used RIF Installer 1 | . . . . . . . . . 1 Robots Hacked . | . . . . . . . . . . Non-combat . | . . . . . . . . . . Combat . | . . . . . . . . . . Robot Hacks Applied . | . . . . . . . . . . Relay Couplers Released 6 | . . . . . . . . . 6 Machine Destruction 6 | . . . . . . . . . 6 Robots Rewired . | . . . . . . . . . . Allies Hacked . | . . . . . . . . . . Hacks Repelled . | . . . . . . . . . . Allies | -11 -10 -10 -9 -9 -9 -8 -8 -7 -7 -------- Run | Scr Mat Min Mat Min Exi Min Mat Fac Gar Total Allies 3 | . . . . 3 . . . . . Largest Group 3 | . . . . 3 3 3 1 . . Highest-Rated Group 40 | . . . . 40 40 40 8 . . Highest-Rated Ally 16 | . . . . 16 16 16 8 . . Total Orders . | . . . . . . . . . . Ally Attacks 19 | . . . . 9 . 9 1 . . Total Damage 191 | . . . . 100 . 81 10 . . Kills 5 | . . . . 4 . 1 . . . Allies Corrupted . | . . . . . . . . . . Allies Melted . | . . . . . . . . . . Intel | -11 -10 -10 -9 -9 -9 -8 -8 -7 -7 ------- Run | Scr Mat Min Mat Min Exi Min Mat Fac Gar Robot Analysis Total 4 | . . . 2 . . . 1 1 . Derelict Logs Recovered 1 | . . 1 . . . . . . . Drone Launches . | . . . . . . . . . . Drone Recoveries . | . . . . . . . . . . Exploration | -11 -10 -10 -9 -9 -9 -8 -8 -7 -7 ------------- Run | Scr Mat Min Mat Min Exi Min Mat Fac Gar Turns Passed 3412 | 18 54 296 409 120 838 110 749 426 392 Spaces Moved 3527 | 26 73 459 363 159 358 185 924 755 225 Core 582 | 26 73 433 . . . . . . 50 Treads . | . . . . . . . . . . Legs . | . . . . . . . . . . Wheels . | . . . . . . . . . . Hover . | . . . . . . . . . . Flight 2945 | . . 26 363 159 358 185 924 755 175 Fastest Speed 34 | 50 50 37 37 37 37 37 34 34 34 Average Speed 39 | 50 50 49 37 65 37 37 35 34 41 Slowest Speed 200 | 50 50 100 37 117 37 37 120 109 200 Overloaded Moves . | . . . . . . . . . . Propulsion Burnouts . | . . . . . . . . . . Robots Hopped 13 | . . . 1 . . 4 . 3 5 Cave-ins Triggered . | . . . . . . . . . . Exploration Rate (%) 36 | 3 23 76 30 33 62 40 46 26 24 Regions Visited 9 Branch Regions 4 Pre-discovered Areas . | . . . . . . . . . . Known Exits Taken 4 | . 1 . 1 . . . 1 1 . Unknown Exits Taken 5 | 1 . 1 . 1 1 1 . . . Scrap Searched 4 | . . 1 . 1 . 2 . . . Spaces Dug 58 | . . . . . . . 36 8 14 Terrain Destroyed 84 | . . 3 23 . . . 36 8 14 Melee 58 | . . . . . . . 36 8 14 Projectile . | . . . . . . . . . . AOE 26 | . . 3 23 . . . . . . Terrain Rammed . | . . . . . . . . . . Walls Destroyed . | . . . . . . . . . . Machines Disabled . | . . . . . . . . . . Actions | -11 -10 -10 -9 -9 -9 -8 -8 -7 -7 --------- Run | Scr Mat Min Mat Min Exi Min Mat Fac Gar Total 5313 | 29 82 503 581 176 1064 220 1263 897 498 Wait 1489 | . 1 4 179 15 694 35 285 98 178 Move 3499 | 25 72 458 360 158 357 177 923 750 219 Hop 7 | . . . 1 . . 3 . 2 1 Pick Up 12 | 2 . 1 1 . 1 1 1 5 . Fast Attach 29 | 2 4 9 2 1 3 . 4 4 . Attach 12 | . . 2 1 . 1 . 1 5 2 Detach 9 | . . 4 . . 2 . . 3 . Swap 6 | . . 1 1 . 1 . . 3 . Drop 22 | . 2 1 2 2 5 1 1 8 . Fire 63 | . 3 23 34 . . 3 . . . Melee 86 | . . . . . . . 48 19 19 Ram . | . . . . . . . . . . Kick . | . . . . . . . . . . Crush . | . . . . . . . . . . Escape Stasis 79 | . . . . . . . . . 79 Rewire . | . . . . . . . . . . Trap . | . . . . . . . . . . Miscellaneous . | . . . . . . . . . . Route ------- -11/Scrapyard -10/Materials -10/Mines -9/Materials (discovered 4 exits: *Min x2 / Sto x2) -9/Mines (discovered 3 exits: *Mat x2 / *Exi) -9/Exiles (discovered 2 exits: [*Min x2]) -8/Mines -8/Materials (discovered 3 exits: *Fac x3) -7/Factory -7/Garrison (discovered 1 exit: [*Fac]) History --------- Turn | Location | Event 11 | -11/Scrapyard | Discovered new exit (range 15) 19 | -11/Scrapyard | Entered Materials 62 | -10/Materials | Discovered new exit (range 13) 72 | -10/Materials | Identified exit to Mines 73 | -10/Materials | Entered Mines 77 | -10/Mines | Met a Derelict who couldn't figure out how to use a Trap Extractor 101 | -10/Mines | Learned Materials garrison access intel 311 | -10/Mines | Build established: Mutant 364 | -10/Mines | Discovered new exit (range 15) 369 | -10/Mines | Entered Materials 369 | -9/Materials | Evolved 2 slots: Utility x2 600 | -9/Materials | Identified exit to Mines 600 | -9/Materials | Identified exit to Storage 698 | -9/Materials | Destroyed 8 combat bots 778 | -9/Materials | Entered Mines 780 | -9/Mines | Assisted by bots powering up and referring to "LRC-V3" 797 | -9/Mines | Discovered new exit (range 6) 808 | -9/Mines | Met a Derelict bent on vengeance 813 | -9/Mines | Discovered new exit (range 8) 818 | -9/Mines | Found the Drone Emporium 823 | -9/Mines | A weapon hastily lodged in a ceiling crevice suddenly fell to the ground 885 | -9/Mines | Deemed a non-threat by the Exiles lab entrance 885 | -9/Mines | Discovered new exit (range 5) 898 | -9/Mines | Entered Exiles 898 | -9/Exiles | Accompanied by 3 allies 911 | -9/Exiles | Met 8R-AWN 918 | -9/Exiles | Met EX-HEX 930 | -9/Exiles | Met EX-BIN 935 | -9/Exiles | Aligned with FarCom system 935 | -9/Exiles | Given EX-Vault access code 980 | -9/Exiles | Build established: Scavenger-Mutant 986 | -9/Exiles | Opened EX-Vault 990 | -9/Exiles | Found Prototype Energy Gun 990 | -9/Exiles | Identified AWS/Thermal 993 | -9/Exiles | Found Prototype Storage 993 | -9/Exiles | Identified Superbattery 1282 | -9/Exiles | Build established: Mutant 1601 | -9/Exiles | Warned to stay clear of 0b10 Research branches 1613 | -9/Exiles | Met EX-DEC 1626 | -9/Exiles | Discovered new exit (range 14) 1672 | -9/Exiles | Discovered new exit (range 14) 1736 | -9/Exiles | Left Exiles lab with Superbattery 1736 | -9/Exiles | Entered Mines 1736 | -8/Mines | Accompanied by 3 allies 1813 | -8/Mines | Discovered new exit (range 9) 1846 | -8/Mines | Entered Materials 1846 | -8/Materials | Accompanied by 1 ally 1846 | -8/Materials | Evolved 2 slots: Utility x2 2333 | -8/Materials | Identified exit to Factory 2506 | -8/Materials | Central database locked down 2595 | -8/Materials | Entered Factory 2595 | -7/Factory | Evolved 2 slots: Utility x2 2926 | -7/Factory | Build established: Hacker-Mutant 3021 | -7/Factory | Identified exit to Garrison 3021 | -7/Factory | Entered Garrison 3023 | -7/Garrison | Installed Relay Interface Framework 3156 | -7/Garrison | Garrison Relay disabled 3368 | -7/Garrison | Triggered checkpoint 3368 | -7/Garrison | Garrison Relay disabled 3394 | -7/Garrison | Core integrity fell below 50% 3403 | -7/Garrison | Core integrity fell below 20% 3408 | -7/Garrison | Discovered new exit (range 13) 3413 | -7/Garrison | Destroyed by S-27 Virus with Autogun Last Messages --------------- 03374_ System Shield destroyed. 03374_ Field strength at 74. 03375_ Field strength at 63. 03375_ Adv. Weight Redist. System destroyed. 03376_ Microactuators destroyed. 03376_ Field strength at 38. 03377_ Field strength at 30. 03377_ Imp. Flight Unit destroyed. 03377_ S-27 Virus destroyed. 03378_ Field strength at 11. 03379_ Field strength at 1. 03379_ Stasis field depleted. 03383_ Chainsword destroyed. 03387_ Triggered Alarm Trap. 03387_ An alarm sounds. 03388_ Extracted 50 matter. 03392_ Chainsword destroyed. 03396_ Cesium-ion Thruster destroyed. 03396_ Hacking Suite destroyed. 03408_ EXIT=FOUND Map ----- +----------------------------------------------------+ | ??????????????????????# #?????#"! #?????????? | | ??????????????????????# #?????#" ^=%#?????????? | | ??????????????????????# #?????#"# [#?????????? | | ??????????????????????# #?????### ###??#####??? | | ??????????????????????# ######### ####+##!!##?? | | ??????????????????????# ## !#?? | | ??????????????????????# s !#?? | | ??????????????????????# s###############+##!!##?? | | ??????????????????????# #????????????????####??? | | ??????????????????????#s #??????????????????????? | | ??????????????????????# s#??????????????????????? | | ??????????????????????#sss#??????????????????????? | | ??????????????????????# #??????????????????????? | | ??????????????????????# s#??????????????????????? | | ??????????????????????# ss#??????????????????????? | | ??????????????????????# s#??????????????????????? | | ??????????????????????# #??????????????????????? | | ??????????????????????# #??????????????????????? | | ??????????????????????# #??????????????????????? | | ??????????????????????# #??????????????????????? | | ??????????????????????# #??????????????????????? | | ??????????????????????# #??????????????????????? | | ??????????????????????# #??????????????????????? | | ??????????????????????# #??????????????????????? | | ??????????????????????# #??????????????????????? | | ???????????????Y??????# @#??????????????????????? | | ??????????????????????# #??????????????????????? | | ??????????????????????# ??????????????????????? | | ??????????????????????#